[Event "*** Titled Tuesday Blitz"]
[Site "Chess.com"]
[Date "2020.04.28"]
[Round "6"]
[White "Galileo22"]
[Black "CMS13"]
[Result "1-0"]
[WhiteElo "2335"]
[BlackElo "2146"]
[TimeControl "180+1"]
[EndTime "11:03:22 PDT"]
[Termination "Galileo22 won by checkmate"]

1. d4 {[%clk 0:03:00.3]} 1... d5 {[%clk 0:02:59.8]} 2. Nf3 {[%clk 0:02:59.4]}
2... Nf6 {[%clk 0:02:59.2]} 3. Bf4 {[%clk 0:02:57.9]} 3... e6 {[%clk 0:02:53.8]}
4. e3 {[%clk 0:02:58]} 4... c5 {[%clk 0:02:54.1]} 5. Nbd2 {[%clk 0:02:48.7]}
5... Nc6 {[%clk 0:02:53.2]} 6. c3 {[%clk 0:02:48.1]} 6... Bd6 {[%clk 0:02:52.4]}
7. Bg3 {[%clk 0:02:44.9]} 7... O-O {[%clk 0:02:52.1]} 8. Bd3 {[%clk 0:02:43.8]}
8... Qc7 {[%clk 0:02:42.6]} 9. dxc5 {[%clk 0:02:21]} 9... Bxg3 {[%clk
0:02:40.4]} 10. hxg3 {[%clk 0:02:21.9]} 10... e5 {[%clk 0:02:36]} 11. e4 {[%clk
0:02:21.1]} 11... Bg4 {[%clk 0:02:33.1]} 12. exd5 {[%clk 0:02:19.1]} 12... e4
{[%clk 0:02:27.4]} 13. Nxe4 {[%clk 0:01:34.1]} 13... Nxe4 {[%clk 0:02:24.8]} 14.
dxc6 {[%clk 0:01:26.9]} 14... Qxc6 {[%clk 0:02:20.1]} 15. Qc2 {[%clk 0:01:23]}
15... f5 {[%clk 0:02:13]} 16. O-O-O {[%clk 0:01:18.4]} 16... Nxc5 {[%clk
0:02:10.6]} 17. Bc4+ {[%clk 0:01:11.6]} 17... Kh8 {[%clk 0:02:09.2]} 18. Ne5
{[%clk 0:01:08]} 18... Qe4 {[%clk 0:02:06.1]} 19. Ng6# {[%clk 0:01:07.2]} 1-0

[Event "*** Titled Tuesday Blitz"]
[Site "Chess.com"]
[Date "2020.04.28"]
[Round "6"]
[White "lelya96"]
[Black "Tynano"]
[Result "0-1"]
[WhiteElo "2270"]
[BlackElo "2154"]
[TimeControl "180+1"]
[EndTime "11:03:33 PDT"]
[Termination "Tynano won by resignation"]

1. e4 {[%clk 0:03:00.9]} 1... e5 {[%clk 0:02:59.9]} 2. Nf3 {[%clk 0:02:59.4]}
2... Nc6 {[%clk 0:03:00.1]} 3. Bb5 {[%clk 0:02:58.8]} 3... f5 {[%clk 0:03:00]}
4. Qe2 {[%clk 0:02:56.7]} 4... fxe4 {[%clk 0:03:00.2]} 5. Qxe4 {[%clk
0:02:55.8]} 5... Nf6 {[%clk 0:03:00.8]} 6. Qc4 {[%clk 0:02:51.7]} 6... d5 {[%clk
0:02:57.1]} 7. Bxc6+ {[%clk 0:02:50.5]} 7... bxc6 {[%clk 0:02:57.4]} 8. Qxc6+
{[%clk 0:02:50.7]} 8... Bd7 {[%clk 0:02:57.8]} 9. Qc3 {[%clk 0:02:47.4]} 9... e4
{[%clk 0:02:54.4]} 10. Qe5+ {[%clk 0:02:44.8]} 10... Be7 {[%clk 0:02:52.3]} 11.
Nd4 {[%clk 0:02:40.9]} 11... Qc8 {[%clk 0:02:28.7]} 12. c4 {[%clk 0:02:18.2]}
12... c5 {[%clk 0:02:17.2]} 13. cxd5 {[%clk 0:02:12.3]} 13... cxd4 {[%clk
0:02:12.8]} 14. O-O {[%clk 0:02:09.7]} 14... Qb8 {[%clk 0:01:59.5]} 15. Qxd4
{[%clk 0:02:09.6]} 15... Bd6 {[%clk 0:01:58]} 16. d3 {[%clk 0:02:02.4]} 16...
Bxh2+ {[%clk 0:01:56.5]} 17. Kh1 {[%clk 0:02:02.3]} 17... O-O {[%clk 0:01:54.9]}
18. dxe4 {[%clk 0:02:02]} 18... Ng4 {[%clk 0:01:54.6]} 19. Nc3 {[%clk
0:01:54.8]} 19... Bg1 {[%clk 0:01:51.9]} 20. d6 {[%clk 0:01:50]} 20... Bxf2
{[%clk 0:01:49.7]} 21. Qd5+ {[%clk 0:01:48.5]} 21... Kh8 {[%clk 0:01:47.8]} 22.
Bg5 {[%clk 0:01:47.8]} 22... Qe8 {[%clk 0:01:46.7]} 23. Be7 {[%clk 0:01:37.7]}
23... Rf5 {[%clk 0:01:44.3]} 0-1

[Event "*** Titled Tuesday Blitz"]
[Site "Chess.com"]
[Date "2020.04.28"]
[Round "6"]
[White "mamey78"]
[Black "Borsuk_Konstantin"]
[Result "1/2-1/2"]
[WhiteElo "2408"]
[BlackElo "2565"]
[TimeControl "180+1"]
[EndTime "11:03:37 PDT"]
[Termination "Game drawn by repetition"]

1. e4 {[%clk 0:03:00.9]} 1... e6 {[%clk 0:02:59]} 2. d4 {[%clk 0:03:00.1]} 2...
d5 {[%clk 0:02:59.4]} 3. exd5 {[%clk 0:03:00.2]} 3... exd5 {[%clk 0:02:59.3]} 4.
c4 {[%clk 0:03:01.1]} 4... Nf6 {[%clk 0:02:57.9]} 5. Nc3 {[%clk 0:03:01.3]} 5...
Be7 {[%clk 0:02:56.2]} 6. Nf3 {[%clk 0:02:58]} 6... O-O {[%clk 0:02:55.4]} 7. h3
{[%clk 0:02:57.6]} 7... b6 {[%clk 0:02:47.2]} 8. Bd3 {[%clk 0:02:40.7]} 8...
dxc4 {[%clk 0:02:46.1]} 9. Bxc4 {[%clk 0:02:39.9]} 9... Ba6 {[%clk 0:02:45.7]}
10. Bxa6 {[%clk 0:02:35.1]} 10... Nxa6 {[%clk 0:02:46.6]} 11. O-O {[%clk
0:02:34.9]} 11... Nb4 {[%clk 0:02:45.3]} 12. Ne5 {[%clk 0:02:33]} 12... h6
{[%clk 0:02:39.5]} 13. a3 {[%clk 0:02:32.5]} 13... Nbd5 {[%clk 0:02:38.6]} 14.
Qf3 {[%clk 0:02:32.6]} 14... Re8 {[%clk 0:01:55.3]} 15. Qg3 {[%clk 0:02:00.1]}
15... Nh5 {[%clk 0:01:38.1]} 16. Qf3 {[%clk 0:01:52.4]} 16... Nhf6 {[%clk
0:01:37.7]} 17. Qg3 {[%clk 0:01:46.7]} 17... Nh5 {[%clk 0:01:31.6]} 18. Qg4
{[%clk 0:01:41.7]} 18... Nhf6 {[%clk 0:01:28.1]} 19. Qg3 {[%clk 0:01:31.7]}
1/2-1/2

[Event "*** Titled Tuesday Blitz"]
[Site "Chess.com"]
[Date "2020.04.28"]
[Round "6"]
[White "calin_dragomirescu"]
[Black "cukin84"]
[Result "0-1"]
[WhiteElo "2233"]
[BlackElo "2084"]
[TimeControl "180+1"]
[EndTime "11:03:40 PDT"]
[Termination "cukin84 won by checkmate"]

1. Nf3 {[%clk 0:03:00.9]} 1... f5 {[%clk 0:02:59.2]} 2. g3 {[%clk 0:02:59.7]}
2... Nf6 {[%clk 0:02:58.8]} 3. d4 {[%clk 0:02:59.3]} 3... g6 {[%clk 0:02:56.3]}
4. Bg2 {[%clk 0:02:59.7]} 4... Bg7 {[%clk 0:02:56.3]} 5. O-O {[%clk 0:03:00.3]}
5... O-O {[%clk 0:02:56.4]} 6. c4 {[%clk 0:03:00.5]} 6... d6 {[%clk 0:02:56.5]}
7. Nc3 {[%clk 0:03:00.7]} 7... Qe8 {[%clk 0:02:55.8]} 8. b3 {[%clk 0:03:01.1]}
8... h6 {[%clk 0:02:52.7]} 9. d5 {[%clk 0:03:00.6]} 9... a5 {[%clk 0:02:52]} 10.
Bb2 {[%clk 0:02:59.7]} 10... Na6 {[%clk 0:02:52]} 11. Nd4 {[%clk 0:02:58.9]}
11... Nc5 {[%clk 0:02:49.1]} 12. Ncb5 {[%clk 0:02:58.1]} 12... Na6 {[%clk
0:02:43.6]} 13. Ne6 {[%clk 0:02:54.4]} 13... Bxe6 {[%clk 0:02:43]} 14. dxe6
{[%clk 0:02:54.7]} 14... c6 {[%clk 0:02:43.3]} 15. Nd4 {[%clk 0:02:50.1]} 15...
Qc8 {[%clk 0:02:43.3]} 16. Re1 {[%clk 0:02:40]} 16... Nc5 {[%clk 0:02:42.3]} 17.
Rc1 {[%clk 0:02:32.8]} 17... Nxe6 {[%clk 0:02:40.2]} 18. Nxe6 {[%clk 0:02:33]}
18... Qxe6 {[%clk 0:02:39.9]} 19. Qd2 {[%clk 0:02:29.1]} 19... Ne4 {[%clk
0:02:37.7]} 20. Qc2 {[%clk 0:02:26.4]} 20... Bxb2 {[%clk 0:02:32.1]} 21. Qxb2
{[%clk 0:02:26.6]} 21... Rf7 {[%clk 0:02:29.1]} 22. h4 {[%clk 0:02:23.9]} 22...
Raf8 {[%clk 0:02:28]} 23. Qc2 {[%clk 0:02:22.5]} 23... g5 {[%clk 0:02:17.3]} 24.
hxg5 {[%clk 0:02:21.7]} 24... hxg5 {[%clk 0:02:16.9]} 25. e3 {[%clk 0:02:21.6]}
25... g4 {[%clk 0:02:14.1]} 26. Re2 {[%clk 0:02:20.9]} 26... Ng5 {[%clk
0:02:13.7]} 27. Rd2 {[%clk 0:02:17]} 27... Nf3+ {[%clk 0:02:12.1]} 28. Bxf3
{[%clk 0:02:14.1]} 28... gxf3 {[%clk 0:02:13]} 29. Rd4 {[%clk 0:02:04.6]} 29...
Rh7 {[%clk 0:02:11.5]} 30. Qd1 {[%clk 0:01:56]} 30... f4 {[%clk 0:01:54.9]} 31.
exf4 {[%clk 0:01:45]} 31... Rh1+ {[%clk 0:01:48.7]} 32. Kxh1 {[%clk 0:01:43.3]}
32... Qh3+ {[%clk 0:01:48]} 33. Kg1 {[%clk 0:01:43.3]} 33... Qg2# {[%clk
0:01:48.1]} 0-1

[Event "*** Titled Tuesday Blitz"]
[Site "Chess.com"]
[Date "2020.04.28"]
[Round "6"]
[White "jaskol95"]
[Black "CMFernandez"]
[Result "1-0"]
[WhiteElo "2267"]
[BlackElo "2066"]
[TimeControl "180+1"]
[EndTime "11:03:43 PDT"]
[Termination "jaskol95 won by checkmate"]

1. d4 {[%clk 0:02:39]} 1... Nf6 {[%clk 0:02:58.8]} 2. Bf4 {[%clk 0:02:39.1]}
2... g6 {[%clk 0:02:56.6]} 3. Nc3 {[%clk 0:02:38]} 3... c5 {[%clk 0:02:55.1]} 4.
d5 {[%clk 0:02:34.7]} 4... d6 {[%clk 0:02:54.7]} 5. e4 {[%clk 0:02:34.6]} 5...
Bg7 {[%clk 0:02:54.9]} 6. Qd2 {[%clk 0:02:33.8]} 6... Na6 {[%clk 0:02:48.1]} 7.
Bh6 {[%clk 0:02:24.2]} 7... Bxh6 {[%clk 0:02:45.9]} 8. Qxh6 {[%clk 0:02:25.1]}
8... Nc7 {[%clk 0:02:44.1]} 9. f4 {[%clk 0:02:22.6]} 9... b5 {[%clk 0:02:33.3]}
10. Nxb5 {[%clk 0:01:56.1]} 10... Nxe4 {[%clk 0:02:29.6]} 11. Qg7 {[%clk
0:01:49.8]} 11... Rf8 {[%clk 0:02:28.4]} 12. Bd3 {[%clk 0:01:40.3]} 12... Nf6
{[%clk 0:02:26.3]} 13. O-O-O {[%clk 0:01:34.7]} 13... Nxb5 {[%clk 0:02:25.8]}
14. Bxb5+ {[%clk 0:01:34.6]} 14... Bd7 {[%clk 0:02:26.3]} 15. Bc4 {[%clk
0:01:25.8]} 15... Qa5 {[%clk 0:02:25.1]} 16. Nf3 {[%clk 0:01:23.2]} 16... Rb8
{[%clk 0:02:23.4]} 17. Rhe1 {[%clk 0:01:20]} 17... Qb4 {[%clk 0:02:22.1]} 18.
Qxf6 {[%clk 0:01:09.1]} 18... e5 {[%clk 0:02:03.8]} 19. dxe6 {[%clk 0:00:59.9]}
19... fxe6 {[%clk 0:02:03.3]} 20. Rxe6+ {[%clk 0:00:59.3]} 20... Bxe6 {[%clk
0:02:01.9]} 21. Qxe6+ {[%clk 0:00:59.4]} 21... Kd8 {[%clk 0:02:01.3]} 22. Rxd6+
{[%clk 0:00:59.4]} 22... Kc7 {[%clk 0:02:01.3]} 23. Qd7# {[%clk 0:01:00.3]} 1-0

[Event "*** Titled Tuesday Blitz"]
[Site "Chess.com"]
[Date "2020.04.28"]
[Round "6"]
[White "WhiteCapital80"]
[Black "tgpgoat"]
[Result "1-0"]
[WhiteElo "2408"]
[BlackElo "2193"]
[TimeControl "180+1"]
[EndTime "11:03:48 PDT"]
[Termination "WhiteCapital80 won by resignation"]

1. e4 {[%clk 0:03:00.9]} 1... c5 {[%clk 0:02:41.2]} 2. Nf3 {[%clk 0:03:00.6]}
2... Nc6 {[%clk 0:02:35.7]} 3. d4 {[%clk 0:03:00.7]} 3... cxd4 {[%clk
0:02:36.6]} 4. Nxd4 {[%clk 0:03:00.8]} 4... e5 {[%clk 0:02:36.4]} 5. Nb5 {[%clk
0:03:01]} 5... d6 {[%clk 0:02:36.6]} 6. Bc4 {[%clk 0:03:00.9]} 6... a6 {[%clk
0:02:35.9]} 7. N5c3 {[%clk 0:03:00.4]} 7... b5 {[%clk 0:02:35.5]} 8. Bxf7+
{[%clk 0:02:50.5]} 8... Kxf7 {[%clk 0:02:29.8]} 9. Qd5+ {[%clk 0:02:51.1]} 9...
Be6 {[%clk 0:02:29.4]} 10. Qxc6 {[%clk 0:02:50.8]} 10... Nf6 {[%clk 0:02:29.6]}
11. Bg5 {[%clk 0:02:42]} 11... Be7 {[%clk 0:02:28.5]} 12. Bxf6 {[%clk
0:02:33.5]} 12... Bxf6 {[%clk 0:02:28.1]} 13. Nd5 {[%clk 0:02:32.8]} 13... Qa5+
{[%clk 0:02:23.7]} 14. b4 {[%clk 0:02:21.4]} 14... Qa4 {[%clk 0:02:18.5]} 15.
Nbc3 {[%clk 0:02:16.1]} 15... Qa3 {[%clk 0:02:06]} 16. O-O {[%clk 0:02:09.9]}
16... Rac8 {[%clk 0:01:57.4]} 17. Qb7+ {[%clk 0:01:58.7]} 17... Kg6 {[%clk
0:01:55.5]} 18. Nxf6 {[%clk 0:01:56.3]} 18... gxf6 {[%clk 0:01:51.9]} 19. Nd5
{[%clk 0:01:55.5]} 19... Bxd5 {[%clk 0:01:46.1]} 20. Qxd5 {[%clk 0:01:43]} 20...
Qxb4 {[%clk 0:01:44.3]} 21. Rad1 {[%clk 0:01:36.8]} 21... Rhd8 {[%clk
0:01:42.5]} 22. Rd3 {[%clk 0:01:33.7]} 22... Kg7 {[%clk 0:01:41.2]} 23. Rg3+
{[%clk 0:01:31.7]} 23... Kh8 {[%clk 0:01:41.4]} 24. Qf7 {[%clk 0:01:30.2]} 1-0

[Event "*** Titled Tuesday Blitz"]
[Site "Chess.com"]
[Date "2020.04.28"]
[Round "6"]
[White "Biranidun"]
[Black "blitzking1729"]
[Result "1-0"]
[WhiteElo "2719"]
[BlackElo "2565"]
[TimeControl "180+1"]
[EndTime "11:03:53 PDT"]
[Termination "Biranidun won by resignation"]

1. e4 {[%clk 0:03:00.9]} 1... d6 {[%clk 0:02:58.4]} 2. d4 {[%clk 0:03:00.7]}
2... Nf6 {[%clk 0:02:58.1]} 3. Nc3 {[%clk 0:03:00.7]} 3... e5 {[%clk 0:02:58.2]}
4. Nf3 {[%clk 0:02:59.5]} 4... Nbd7 {[%clk 0:02:57.9]} 5. Bc4 {[%clk 0:02:58.9]}
5... Be7 {[%clk 0:02:57.7]} 6. O-O {[%clk 0:02:59.2]} 6... O-O {[%clk
0:02:57.4]} 7. Re1 {[%clk 0:02:59.3]} 7... c6 {[%clk 0:02:57.7]} 8. a4 {[%clk
0:02:59.2]} 8... Qc7 {[%clk 0:02:56.6]} 9. h3 {[%clk 0:02:56.8]} 9... b6 {[%clk
0:02:56.6]} 10. Ba2 {[%clk 0:02:57]} 10... Bb7 {[%clk 0:02:56.5]} 11. Nh4 {[%clk
0:02:54.9]} 11... Rfe8 {[%clk 0:02:56.4]} 12. Nf5 {[%clk 0:02:42.2]} 12... Bf8
{[%clk 0:02:54.4]} 13. Bg5 {[%clk 0:02:31.8]} 13... h6 {[%clk 0:02:29.7]} 14.
Bh4 {[%clk 0:02:30.2]} 14... g6 {[%clk 0:02:28.6]} 15. dxe5 {[%clk 0:02:25.1]}
15... dxe5 {[%clk 0:02:25.6]} 16. Ne3 {[%clk 0:02:24]} 16... Rad8 {[%clk
0:02:18.7]} 17. Qf3 {[%clk 0:02:23.7]} 17... Bg7 {[%clk 0:02:18.4]} 18. Ng4
{[%clk 0:02:23.5]} 18... Qd6 {[%clk 0:02:01]} 19. Rad1 {[%clk 0:02:18.5]} 19...
Qe7 {[%clk 0:02:00.7]} 20. Rxd7 {[%clk 0:02:15.2]} 20... Qxd7 {[%clk 0:01:27.9]}
21. Nxf6+ {[%clk 0:02:10.9]} 21... Bxf6 {[%clk 0:01:25.5]} 22. Bxf6 {[%clk
0:02:11.8]} 22... Rc8 {[%clk 0:01:21.6]} 23. Rd1 {[%clk 0:02:11.6]} 23... Qc7
{[%clk 0:01:18.4]} 24. Qg4 {[%clk 0:02:11.4]} 1-0

[Event "*** Titled Tuesday Blitz"]
[Site "Chess.com"]
[Date "2020.04.28"]
[Round "6"]
[White "Jbd735"]
[Black "semchik73"]
[Result "1-0"]
[WhiteElo "2410"]
[BlackElo "2220"]
[TimeControl "180+1"]
[EndTime "11:04:06 PDT"]
[Termination "Jbd735 won by resignation"]

1. e4 {[%clk 0:03:00.9]} 1... Nf6 {[%clk 0:03:00.4]} 2. e5 {[%clk 0:03:00.8]}
2... Nd5 {[%clk 0:03:00.2]} 3. d4 {[%clk 0:03:01.4]} 3... d6 {[%clk 0:03:00.1]}
4. Nf3 {[%clk 0:03:02]} 4... Bg4 {[%clk 0:03:00.2]} 5. exd6 {[%clk 0:02:59.6]}
5... cxd6 {[%clk 0:03:00]} 6. h3 {[%clk 0:02:59.7]} 6... Bh5 {[%clk 0:02:59]} 7.
c4 {[%clk 0:02:56.4]} 7... Nb6 {[%clk 0:02:58.2]} 8. b3 {[%clk 0:02:54.6]} 8...
e6 {[%clk 0:02:55.3]} 9. Bb2 {[%clk 0:02:54.7]} 9... Be7 {[%clk 0:02:55.5]} 10.
Be2 {[%clk 0:02:53.8]} 10... O-O {[%clk 0:02:54.1]} 11. O-O {[%clk 0:02:53.8]}
11... Bf6 {[%clk 0:02:53]} 12. Nbd2 {[%clk 0:02:50.6]} 12... Nc6 {[%clk
0:02:53.2]} 13. Ne4 {[%clk 0:02:46.8]} 13... Be7 {[%clk 0:02:52.8]} 14. d5
{[%clk 0:02:36.8]} 14... exd5 {[%clk 0:02:49.3]} 15. cxd5 {[%clk 0:02:37.7]}
15... Nb4 {[%clk 0:02:48.1]} 16. Qd4 {[%clk 0:02:35.3]} 16... f6 {[%clk
0:02:37.6]} 17. Qxb4 {[%clk 0:02:32.6]} 17... Nxd5 {[%clk 0:02:36]} 18. Bc4
{[%clk 0:02:27.3]} 18... Bf7 {[%clk 0:02:36.4]} 19. Qd2 {[%clk 0:02:27.1]} 19...
Nc7 {[%clk 0:02:33.3]} 20. Bxf7+ {[%clk 0:02:26.4]} 20... Rxf7 {[%clk
0:02:33.9]} 21. Rfd1 {[%clk 0:02:20.2]} 21... d5 {[%clk 0:02:34.3]} 22. Nc3
{[%clk 0:02:19.7]} 22... Bb4 {[%clk 0:02:33.6]} 23. a3 {[%clk 0:02:18.4]} 23...
Ba5 {[%clk 0:02:33]} 24. b4 {[%clk 0:02:18]} 24... Bb6 {[%clk 0:02:32.8]} 25.
Na4 {[%clk 0:02:18.2]} 25... Rd7 {[%clk 0:02:28.3]} 26. Nxb6 {[%clk 0:02:18]}
26... axb6 {[%clk 0:02:28.4]} 27. Nd4 {[%clk 0:02:18.6]} 27... Qe8 {[%clk
0:02:25.2]} 28. Re1 {[%clk 0:02:17.3]} 28... Qg6 {[%clk 0:02:24]} 29. Rac1
{[%clk 0:02:13.9]} 29... Ne8 {[%clk 0:02:23]} 30. Qc2 {[%clk 0:02:09.6]} 30...
Qf7 {[%clk 0:02:20.9]} 31. Qe2 {[%clk 0:02:08.3]} 31... Nd6 {[%clk 0:02:20.8]}
32. Qe6 {[%clk 0:01:56.8]} 32... Nc4 {[%clk 0:02:20.6]} 33. Qxf7+ {[%clk
0:01:52.6]} 33... Kxf7 {[%clk 0:02:20.2]} 34. Rc2 {[%clk 0:01:51.5]} 34... Nxb2
{[%clk 0:02:19.5]} 35. Rxb2 {[%clk 0:01:52.4]} 35... Rxa3 {[%clk 0:02:19.1]} 36.
f3 {[%clk 0:01:46.1]} 36... Rd3 {[%clk 0:02:18.8]} 37. Ne2 {[%clk 0:01:42.4]}
37... Re3 {[%clk 0:02:17.1]} 38. Kf2 {[%clk 0:01:41.7]} 38... d4 {[%clk
0:02:17.6]} 39. Rd1 {[%clk 0:01:36.3]} 39... Re5 {[%clk 0:02:04.3]} 40. Nxd4
{[%clk 0:01:34.7]} 40... Red5 {[%clk 0:02:04.3]} 41. Rbd2 {[%clk 0:01:34.8]}
41... b5 {[%clk 0:02:03.6]} 42. Nb3 {[%clk 0:01:31.3]} 42... Ke6 {[%clk
0:01:58.7]} 43. Nc5+ {[%clk 0:01:28.9]} 1-0

[Event "*** Titled Tuesday Blitz"]
[Site "Chess.com"]
[Date "2020.04.28"]
[Round "6"]
[White "Kimster98"]
[Black "TERMINATOR_PC"]
[Result "0-1"]
[WhiteElo "2558"]
[BlackElo "2414"]
[TimeControl "180+1"]
[EndTime "11:04:10 PDT"]
[Termination "TERMINATOR_PC won by resignation"]

1. d4 {[%clk 0:03:00.3]} 1... Nf6 {[%clk 0:03:00.2]} 2. Bf4 {[%clk 0:02:59.3]}
2... d5 {[%clk 0:03:00]} 3. e3 {[%clk 0:02:59.5]} 3... c5 {[%clk 0:03:00.5]} 4.
c3 {[%clk 0:02:59.5]} 4... Nc6 {[%clk 0:03:01]} 5. Nd2 {[%clk 0:02:59.5]} 5...
cxd4 {[%clk 0:03:00.9]} 6. exd4 {[%clk 0:02:59.8]} 6... Bf5 {[%clk 0:03:01.5]}
7. Ngf3 {[%clk 0:02:59]} 7... e6 {[%clk 0:03:01.9]} 8. Qb3 {[%clk 0:02:59.4]}
8... Qc8 {[%clk 0:03:02.1]} 9. Nh4 {[%clk 0:02:53]} 9... Bg4 {[%clk 0:03:02.4]}
10. h3 {[%clk 0:02:53]} 10... Bh5 {[%clk 0:03:02.9]} 11. g4 {[%clk 0:02:53.5]}
11... Bg6 {[%clk 0:03:03.5]} 12. Nxg6 {[%clk 0:02:53.6]} 12... hxg6 {[%clk
0:03:04.4]} 13. Be2 {[%clk 0:02:54.1]} 13... Be7 {[%clk 0:02:58.1]} 14. a4
{[%clk 0:02:47.2]} 14... a6 {[%clk 0:02:56.1]} 15. f3 {[%clk 0:02:42.2]} 15...
Qd7 {[%clk 0:02:42.3]} 16. Kf1 {[%clk 0:02:35.2]} 16... Rc8 {[%clk 0:02:36.8]}
17. Kg2 {[%clk 0:02:31.1]} 17... Na5 {[%clk 0:02:34.2]} 18. Qd1 {[%clk
0:02:28.7]} 18... Bd6 {[%clk 0:02:30.6]} 19. Be3 {[%clk 0:02:22.2]} 19... Qc7
{[%clk 0:02:23.5]} 20. Rc1 {[%clk 0:02:13.8]} 20... Bf4 {[%clk 0:02:19.4]} 21.
Qg1 {[%clk 0:02:13.5]} 21... Nd7 {[%clk 0:02:11.3]} 22. b4 {[%clk 0:02:07.5]}
22... Nc6 {[%clk 0:02:08.7]} 23. Nf1 {[%clk 0:01:54]} 23... g5 {[%clk
0:02:03.8]} 24. Bxf4 {[%clk 0:01:52]} 24... Qxf4 {[%clk 0:02:02.5]} 25. Ne3
{[%clk 0:01:46.9]} 25... Nf8 {[%clk 0:01:54.8]} 26. Kf2 {[%clk 0:01:43.8]} 26...
Ng6 {[%clk 0:01:49.9]} 27. Qh2 {[%clk 0:01:43]} 27... Qxh2+ {[%clk 0:01:45.6]}
28. Rxh2 {[%clk 0:01:43.9]} 28... Nxd4 {[%clk 0:01:44.3]} 29. Rhh1 {[%clk
0:01:33.2]} 29... Nxe2 {[%clk 0:01:35]} 30. Kxe2 {[%clk 0:01:34.1]} 30... Nf4+
{[%clk 0:01:35.9]} 31. Kf2 {[%clk 0:01:31]} 31... Nd3+ {[%clk 0:01:27.7]} 0-1

[Event "*** Titled Tuesday Blitz"]
[Site "Chess.com"]
[Date "2020.04.28"]
[Round "6"]
[White "SmirnovAlexandrA"]
[Black "Zq1"]
[Result "0-1"]
[WhiteElo "2352"]
[BlackElo "2577"]
[TimeControl "180+1"]
[EndTime "11:04:16 PDT"]
[Termination "Zq1 won by resignation"]

1. e4 {[%clk 0:03:00.9]} 1... c5 {[%clk 0:02:50.9]} 2. Nf3 {[%clk 0:03:00.4]}
2... d6 {[%clk 0:02:48.1]} 3. d4 {[%clk 0:03:00]} 3... cxd4 {[%clk 0:02:48.2]}
4. Nxd4 {[%clk 0:03:00.6]} 4... Nf6 {[%clk 0:02:48.5]} 5. Nc3 {[%clk 0:03:00.1]}
5... Nc6 {[%clk 0:02:48.7]} 6. Bg5 {[%clk 0:02:59]} 6... e6 {[%clk 0:02:46.8]}
7. Qd2 {[%clk 0:02:58.7]} 7... Be7 {[%clk 0:02:45.4]} 8. O-O-O {[%clk
0:02:51.7]} 8... O-O {[%clk 0:02:44.7]} 9. f3 {[%clk 0:02:51.2]} 9... Nxd4
{[%clk 0:02:39.7]} 10. Qxd4 {[%clk 0:02:50.5]} 10... a6 {[%clk 0:02:39.8]} 11.
Kb1 {[%clk 0:02:49.1]} 11... b5 {[%clk 0:02:37]} 12. h4 {[%clk 0:02:45]} 12...
Bb7 {[%clk 0:02:36.6]} 13. Qd2 {[%clk 0:02:36.5]} 13... Rc8 {[%clk 0:02:34.9]}
14. Bxf6 {[%clk 0:02:24]} 14... Bxf6 {[%clk 0:02:33.3]} 15. Qxd6 {[%clk
0:02:22.7]} 15... Qa5 {[%clk 0:02:05.5]} 16. e5 {[%clk 0:02:19]} 16... Rfd8
{[%clk 0:02:01.1]} 17. Qa3 {[%clk 0:02:14]} 17... Qxa3 {[%clk 0:01:59.8]} 18.
bxa3 {[%clk 0:02:12.8]} 18... Rxc3 {[%clk 0:01:59.2]} 19. Re1 {[%clk 0:02:05.7]}
19... Be7 {[%clk 0:01:57.4]} 20. Kb2 {[%clk 0:02:02.2]} 20... Rdc8 {[%clk
0:01:56.4]} 21. Bd3 {[%clk 0:02:02.2]} 21... Bxa3+ {[%clk 0:01:53.7]} 22. Kb1
{[%clk 0:02:02]} 22... Bd5 {[%clk 0:01:49.5]} 23. h5 {[%clk 0:02:01.7]} 23... h6
{[%clk 0:01:48.6]} 24. Rh4 {[%clk 0:02:01.2]} 24... Be7 {[%clk 0:01:38.3]} 25.
Rg4 {[%clk 0:01:58.8]} 25... Kf8 {[%clk 0:01:36.9]} 26. Kb2 {[%clk 0:01:57.4]}
26... b4 {[%clk 0:01:26.9]} 27. Re2 {[%clk 0:01:51.3]} 27... Ra3 {[%clk
0:01:22.5]} 28. Be4 {[%clk 0:01:48.7]} 28... Rxa2+ {[%clk 0:01:13.2]} 29. Kb1
{[%clk 0:01:48.2]} 29... b3 {[%clk 0:01:11.1]} 30. Bxd5 {[%clk 0:01:44.4]} 30...
bxc2+ {[%clk 0:01:07]} 0-1

[Event "*** Titled Tuesday Blitz"]
[Site "Chess.com"]
[Date "2020.04.28"]
[Round "6"]
[White "KingChess345"]
[Black "reniite"]
[Result "1-0"]
[WhiteElo "2133"]
[BlackElo "1935"]
[TimeControl "180+1"]
[EndTime "11:04:22 PDT"]
[Termination "KingChess345 won on time"]

1. d4 {[%clk 0:03:00.9]} 1... Nf6 {[%clk 0:02:59.6]} 2. Nf3 {[%clk 0:03:01]}
2... d5 {[%clk 0:02:50.1]} 3. g3 {[%clk 0:03:01.9]} 3... c6 {[%clk 0:02:49.3]}
4. Bg2 {[%clk 0:03:02.8]} 4... Bf5 {[%clk 0:02:46.9]} 5. O-O {[%clk 0:03:03.1]}
5... e6 {[%clk 0:02:47.2]} 6. c4 {[%clk 0:03:03.6]} 6... h6 {[%clk 0:02:47.6]}
7. Qb3 {[%clk 0:03:04]} 7... Qb6 {[%clk 0:02:47]} 8. c5 {[%clk 0:03:04.2]} 8...
Qxb3 {[%clk 0:02:46.6]} 9. axb3 {[%clk 0:03:05.1]} 9... Nbd7 {[%clk 0:02:47]}
10. Nc3 {[%clk 0:03:05.6]} 10... g5 {[%clk 0:02:43.7]} 11. b4 {[%clk 0:03:04.9]}
11... Bg7 {[%clk 0:02:43.2]} 12. b5 {[%clk 0:03:03.7]} 12... Ke7 {[%clk
0:02:43.2]} 13. Nd2 {[%clk 0:02:56]} 13... e5 {[%clk 0:02:42]} 14. Nb3 {[%clk
0:02:50.3]} 14... Bc2 {[%clk 0:02:37]} 15. Na5 {[%clk 0:02:04.9]} 1-0

[Event "*** Titled Tuesday Blitz"]
[Site "Chess.com"]
[Date "2020.04.28"]
[Round "6"]
[White "AndrewMaco"]
[Black "jonaszmb"]
[Result "0-1"]
[WhiteElo "2624"]
[BlackElo "2448"]
[TimeControl "180+1"]
[EndTime "11:04:29 PDT"]
[Termination "jonaszmb won on time"]

1. e4 {[%clk 0:03:00.9]} 1... c5 {[%clk 0:03:00.1]} 2. Nf3 {[%clk 0:02:57.6]}
2... Nc6 {[%clk 0:03:00.2]} 3. d4 {[%clk 0:02:55]} 3... cxd4 {[%clk 0:03:01.1]}
4. Nxd4 {[%clk 0:02:55.9]} 4... e5 {[%clk 0:03:01.6]} 5. Nb5 {[%clk 0:02:55.6]}
5... a6 {[%clk 0:03:01.7]} 6. Nd6+ {[%clk 0:02:54.4]} 6... Bxd6 {[%clk
0:03:02.2]} 7. Qxd6 {[%clk 0:02:55.1]} 7... Qf6 {[%clk 0:03:02.6]} 8. Qd1 {[%clk
0:02:53.2]} 8... Qg6 {[%clk 0:03:02.6]} 9. Nc3 {[%clk 0:02:51.7]} 9... d5 {[%clk
0:03:02.8]} 10. Nxd5 {[%clk 0:02:45.7]} 10... Qxe4+ {[%clk 0:03:02.6]} 11. Be3
{[%clk 0:02:34.5]} 11... Nd4 {[%clk 0:03:02.2]} 12. Nc7+ {[%clk 0:02:27.6]}
12... Ke7 {[%clk 0:03:02.3]} 13. Bd3 {[%clk 0:01:43.3]} 13... Qxg2 {[%clk
0:02:57.5]} 14. Kd2 {[%clk 0:01:43.7]} 14... Bg4 {[%clk 0:02:46.1]} 15. Qf1
{[%clk 0:01:15.8]} 15... Nf3+ {[%clk 0:02:39.4]} 16. Kc1 {[%clk 0:01:15.3]}
16... Qxf1+ {[%clk 0:02:37.8]} 17. Rxf1 {[%clk 0:01:16.2]} 17... Rd8 {[%clk
0:02:22.3]} 18. Bc5+ {[%clk 0:00:37.7]} 18... Kd7 {[%clk 0:02:18.9]} 19. Bb6
{[%clk 0:00:33.8]} 19... Kc6 {[%clk 0:02:09.5]} 0-1